Cogmind - Beta 13 @@@ ROGUE MODE // 2024.04.13 @ 21:56:43 Player: emory Result: Destroyed by Y-45 Defender with Heavy Assault Rifle Performance ------------- Evolutions (1) 500 Regions Visited (2) 400 Robots Destroyed (3) 15 Value Destroyed (30) 30 Prototype IDs (0) 0 Alien Tech Used (0) 0 Bonus (0) 0 TOTAL SCORE: 945 Bonus ------- None Cogmind --------- Core Integrity 0/400 Matter 300/300 Energy 100/100 System Corruption 2% Temperature Cool (0) Movement Core (50) Location -9/Materials Parts ------- > --- POWER (1) -------- (None) > --- PROPULSION (4) --- (None) > --- UTILITY (2) ------ (None) > --- WEAPON (2) ------- (None) > --- INVENTORY (5) ---- Nuclear Core Nuclear Core Small Storage Unit EM Pulse Gun Peak State ------------ > --- POWER ------------ Nuclear Core > --- PROPULSION ------- Flight Unit Flight Unit Flight Unit Flight Unit > --- UTILITY ---------- (None) > --- WEAPON ----------- EM Pulse Gun Light Assault Rifle > --- INVENTORY -------- Ion Engine Small Storage Unit EM Pulse Gun [Rating: 9] Favorites ----------- Power Nuclear Core Engine Light Ion Engine Power Core Nuclear Core Propulsion Flight Unit Flight Unit Flight Unit Utility None Weapon Light Assault Rifle Energy Gun EM Pulse Gun Ballistic Gun Light Assault Rifle Build | -11 -10 -9 ------- Run | Yrd Mat Mat Slots Evolved 2 | . . 2 Power . | . . . Propulsion 2 | . . 2 Utility . | . . . Weapon . | . . . Parts Attached 8 | 2 3 3 Power 2 | . 1 1 Engine 1 | . 1 . Core 1 | . . 1 Reactor . | . . . Propulsion 4 | . 2 2 Treads . | . . . Leg . | . . . Wheel . | . . . Hover . | . . . Flight 4 | . 2 2 Utility . | . . . Device . | . . . Storage . | . . . Processor . | . . . Hackware . | . . . Protection . | . . . Artifact . | . . . Weapon 2 | 2 . . Energy Gun 1 | 1 . . Energy Cannon . | . . . Ballistic Gun 1 | 1 . . Ballistic Cannon . | . . . Launcher . | . . . Special Weapon . | . . . Impact Weapon . | . . . Slashing Weapon . | . . . Piercing Weapon . | . . . Special Melee Weapon . | . . . Unidentified Prototypes . | . . . Parts Lost 6 | . . 6 Power . | . . . Propulsion 4 | . . 4 Utility . | . . . Weapon 2 | . . 2 Highest Loss Streak 6 | . . 6 To Critical Strikes . | . . . Average Slot Usage (%) 37 | . 37 38 Engine 1 | . 3 . Core 2 | . . 4 Flight 14 | . 5 23 Energy Gun 9 | . 14 4 Ballistic Gun 10 | . 14 6 Naked Turns 24 | . . 24 Heaviest Build 10 | 3 6 10 Greatest Support 16 | 3 8 16 Greatest Overweight (x) 1 | . 1 1 Average Overweight (x) . | . . . Largest Inventory Capacity 5 | 5 5 5 Average Capacity 5 | 5 5 5 Most Carried 5 | 5 5 4 Average Carried 3 | 3 4 3 Final Capacity 5 | 5 5 5 Final Carried 5 | 4 5 4 Class Distribution -------------------- 65% | Mutant 34% | Scavenger-Sprinter Dominant Class ---------------- Mutant | -10/Materials Mutant | -9/Materials Resources | -11 -10 -9 ----------- Run | Yrd Mat Mat Matter Collected 259 | 214 45 . Remotely . | . . . Salvage Created 58 | . 58 . Parts 6 | . 6 . Haulers Intercepted . | . . . Recyclers Shooed . | . . . Parts Field Recycled . | . . . Retrieved Matter . | . . . Parts Self-Destructed . | . . . Prevented . | . . . Kills | -11 -10 -9 ------- Run | Yrd Mat Mat Combat Hostiles Destroyed 3 | . 3 . Guns 3 | . 3 . Classes Destroyed 1 | . 1 . Swarmer 3 | . 3 . Best Kill Streak 3 | . 3 . Combat Bots Only 3 | . 3 . Max Kills in Single Turn 2 | . 2 . Gunslinging 1 | . 1 . Exploded . | . . . Melee . | . . . Uniques/NPCs Destroyed . | . . . Combat | -11 -10 -9 -------- Run | Yrd Mat Mat Hostile Shots Fired 120 | . 15 105 Missed 49 | . 2 47 Damage Taken 720 | . 105 615 Core 457 | . 48 409 Absorbed by Shields . | . . . Core Remaining (%) 90 | 100 80 . Volleys Fired 9 | . 9 . Largest 2 | . 2 . Hottest 60 | . 60 . Shots Fired 18 | . 18 . Gun 18 | . 18 . Cannon . | . . . Launcher . | . . . Special . | . . . Kinetic 9 | . 9 . Thermal . | . . . Explosive . | . . . Electromagnetic 9 | . 9 . Robot Hit Streak 2 | . 2 . Robot Miss Streak 4 | . 4 . Penetration Max . | . . . Secondary Targets 1 | . 1 . Max Gunslinging Chain 1 | . 1 . Shots Hit Robots 8 | . 8 . Core Hits 3 | . 3 . Critical Kills . | . . . Critical Parts Destroyed . | . . . Critical Strikes . | . . . Melee Attacks . | . . . Impact . | . . . Slashing . | . . . Piercing . | . . . Sneak Attacks . | . . . Combat Hostiles . | . . . Follow-up Attacks . | . . . Damage Inflicted 84 | . 72 12 Guns 72 | . 72 . Cannons . | . . . Explosions . | . . . Melee . | . . . Ramming 12 | . . 12 Kinetic 49 | . 49 . Thermal . | . . . Explosive . | . . . Electromagnetic 23 | . 23 . Impact . | . . . Slashing . | . . . Piercing . | . . . Highest Corruption 2 | . . 2 Average Corruption 2 | . . 2 Corruption Purged . | . . . Corruption Blocked . | . . . Overload Shots . | . . . Overflow Damage . | . . . Projectiles . | . . . Explosions . | . . . Melee . | . . . Knockbacks . | . . . Impact . | . . . Kinetic . | . . . Secondary . | . . . Self-Inflicted Damage 4 | . . 4 Shots . | . . . Rammed 4 | . . 4 Targets Rammed 4 | . . 4 Kicked . | . . . Crushed . | . . . Highest Temperature 26 | . 26 3 Average Temperature 10 | . 11 2 Received Heat Transfer 90 | . . 90 Siege Activations . | . . . Robots Corrupted . | . . . Combat Hostiles . | . . . Parts Fried . | . . . Impact Corruptions . | . . . Robots Melted . | . . . Combat Hostiles . | . . . Parts Melted . | . . . Heat Transferred . | . . . Parts Sabotaged . | . . . Parts Stolen . | . . . Parts Stripped . | . . . Power Chain Reactions . | . . . Alert | -11 -10 -9 ------- Run | Yrd Mat Mat Peak Influence 115 | . 115 83 Initial 48 | . . 48 Average 43 | . 60 47 Maximum Alert Level . | . . . Low Security (%) 100 | 100 100 100 Level 1 . | . . . Level 2 . | . . . Level 3 . | . . . Level 4 . | . . . Level 5 . | . . . High Security . | . . . Max Security . | . . . Squads Dispatched . | . . . Investigation . | . . . Extermination . | . . . Reinforcement . | . . . Assault . | . . . Garrison . | . . . Intercept . | . . . Searches Triggered . | . . . Construction Impeded . | . . . Haulers Reinforced . | . . . Active Scanning Responses . | . . . Cargo Convoy Interrupts . | . . . Stealth | -11 -10 -9 --------- Run | Yrd Mat Mat Distress Signals 1 | . . 1 Communications Jammed . | . . . Distress Signals . | . . . Times Spotted 17 | . 5 12 Peak Tracking Total 12 | . 4 12 Tactical Retreats . | . . . Traps | -11 -10 -9 ------- Run | Yrd Mat Mat Traps Triggered . | . . . Indirectly . | . . . Trap Hack Attempts . | . . . Triggered . | . . . Disarmed . | . . . Reprogrammed . | . . . Reused . | . . . Traps Extracted . | . . . Installed . | . . . Triggered . | . . . Machines | -11 -10 -9 ---------- Run | Yrd Mat Mat Machines Disabled . | . . . Max in Single Turn . | . . . Machines Repaired . | . . . Machines Dismantled . | . . . Machines Sabotaged . | . . . Overloaded Fab Kills . | . . . Hacking | -11 -10 -9 --------- Run | Yrd Mat Mat Machines Accessed 1 | . 1 . Terminals 1 | . 1 . Fabricators . | . . . Repair Stations . | . . . Recycling Units . | . . . Scanalyzers . | . . . Garrison Access . | . . . Total Hacks 2 | . 2 . Successful . | . . . Failed 2 | . 2 . Catastrophic 2 | . 2 . Database Lockouts . | . . . Manual . | . . . Terminals 2 | . 2 . Fabricators . | . . . Repair Stations . | . . . Recycling Units . | . . . Scanalyzers . | . . . Garrison Access . | . . . Terminal Hacks . | . . . Fabricator Hacks . | . . . Repair Station Hacks . | . . . Recycling Unit Hacks . | . . . Scanalyzer . | . . . Garrison Access Hacks . | . . . Unauthorized Hacks . | . . . Terminals . | . . . Fabricators . | . . . Repair Stations . | . . . Recycling Units . | . . . Scanalyzers . | . . . Garrison Access . | . . . Data Cores Recovered . | . . . Used . | . . . Hacking Detections 1 | . 1 . Full Trace Events . | . . . Feedback Events . | . . . Feedback Blocked . | . . . Robot Schematics Acquired . | . . . Robots Built . | . . . Authchips . | . . . Time . | . . . Total Robot Build Rating . | . . . Part Schematics Acquired . | . . . Parts Built . | . . . Authchips . | . . . Time . | . . . Total Part Build Rating . | . . . Parts Repaired . | . . . Time . | . . . Parts Recycled . | . . . Recycled Matter . | . . . Retrieved Matter . | . . . Retrieved Components . | . . . Parts Scanalyzed . | . . . Part Schematics Acquired . | . . . Parts Damaged . | . . . Bothacking | -11 -10 -9 ------------ Run | Yrd Mat Mat Used RIF Installer . | . . . Robots Hacked . | . . . Non-combat . | . . . Combat . | . . . Robot Hacks Applied . | . . . Relay Couplers Released . | . . . Fabnet Peak Effective % . | . . . Robots Rewired . | . . . Allies Hacked . | . . . Hacks Repelled . | . . . Allies | -11 -10 -9 -------- Run | Yrd Mat Mat Total Allies . | . . . Largest Group . | . . . Highest-Rated Group . | . . . Highest-Rated Ally . | . . . Total Orders . | . . . Ally Attacks . | . . . Total Damage . | . . . Kills . | . . . Allies Corrupted . | . . . Allies Melted . | . . . Intel | -11 -10 -9 ------- Run | Yrd Mat Mat Robot Analysis Total . | . . . Derelict Logs Recovered . | . . . Drone Launches . | . . . Drone Recoveries . | . . . Exploration | -11 -10 -9 ------------- Run | Yrd Mat Mat Turns Passed 189 | 38 78 73 Spaces Moved 306 | 60 85 161 Core 171 | 60 61 50 Treads . | . . . Legs . | . . . Wheels . | . . . Hover . | . . . Flight 135 | . 24 111 Fastest Speed 31 | 50 37 31 Average Speed 44 | 50 53 38 Slowest Speed 120 | 50 120 120 Overloaded Moves . | . . . Propulsion Burnouts . | . . . Robots Hopped 5 | . . 5 Cave-ins Triggered . | . . . Exploration Rate (%) 13 | 3 19 19 Regions Visited 2 Branch Regions . Pre-discovered Areas . | . . . Known Exits Taken . | . . . Unknown Exits Taken 2 | 1 1 . Scrap Searched . | . . . Spaces Dug . | . . . Terrain Destroyed . | . . . Melee . | . . . Projectile . | . . . AOE . | . . . Terrain Rammed . | . . . Walls Destroyed . | . . . Machines Disabled . | . . . Actions | -11 -10 -9 --------- Run | Yrd Mat Mat Total 337 | 67 102 168 Wait . | . . . Move 294 | 59 84 151 Hop 5 | . . 5 Pick Up 13 | 6 5 2 Fast Attach . | . . . Attach 8 | 2 3 3 Detach 1 | . . 1 Swap . | . . . Drop 3 | . 1 2 Fire 9 | . 9 . Melee . | . . . Ram 4 | . . 4 Kick . | . . . Crush . | . . . Escape Stasis . | . . . Rewire . | . . . Trap . | . . . Miscellaneous . | . . . Route ------- -11/Scrapyard -10/Materials (discovered 2 exits: *Mat / [*Min]) -9/Materials History --------- Turn | Location | Event 17 | -11/Scrapyard | Discovered new exit (range 15) 39 | -11/Scrapyard | Entered Materials 40 | -10/Materials | Discovered new exit (range 12) 61 | -10/Materials | Discovered new exit (range 16) 117 | -10/Materials | Entered another Materials area 117 | -9/Materials | Evolved 2 slots: Propulsion x2 179 | -9/Materials | Core integrity fell below 50% 185 | -9/Materials | Core integrity fell below 20% 190 | -9/Materials | Destroyed by Y-45 Defender with Heavy Assault Rifle Last Messages --------------- 00119_ Dropped Lgt. Ion Engine. 00122_ Acquired Nuclear Core. 00124_ Dropped Ion Engine. 00124_ Acquired Nuclear Core. 00130_ K-01 Serf collects debris. 00145_ Connecting with Terminal... 00145_ Current location identified: Materials 00146_ K-01 Serf collects debris. 00148_ W-16 Scout sends out distress signal. 00148_ EM Pulse Gun destroyed. 00153_ Flight Unit destroyed. 00166_ Lgt. Assault Rifle destroyed. 00183_ Slammed into S-10 Pest. 00183_ Destabilizing: Core damaged (-4). 00184_ S-10 Pest destroyed. 00184_ Slammed into Y-45 Defender. 00185_ K-01 Serf collects debris. 00185_ Slammed into Y-45 Defender. 00185_ Destabilizing: System corrupted (+2). 00186_ Slammed into Y-45 Defender. Map ----- +----------------------------------------------------+ | ??????????# ?????????????????????????????? | | ??????????# #???????????????? #?????????? | | ?????????## ##?????????????? #?????????? | | ?????????# #?????????????# #?????????? | | ?????????? #######???????# #?????????? | | ?????????? #[ #???????# #???####### | | ?????????? # "" #???????# #???# # | | ??????????# ## ""S #???????# #???# | | ########### ## "" #???????# #???# | | # ## ## #???????+ #???# | | # ## ## #???????# #???# | | # ## ## ?????????# #???# | | # # ##+############ ##??# """ | | # + #### """ | | # # """ | | # # ############## | | # ## ##????????????# | | # ## #?????????????# #### #"Y | | ########### #????????????####/###### #"" | | ???# ?# #########????# # ### | | ???# """?# # | #????# # #?? | | ???# """ # # """ #????# """ # #?? | | ???# """ # #Y """ #????# """ # #?? | | ???# """ + %%% """ #????#"" """ + #?? | | ???# # %# #????#"T #####?? | | ???########% #####@###????#"" #?????? | | ????###### #### #??????# #?????? | | ????# #??????###########?????? | | ????# #??????????????????????? | | ????# # ### ##??????????????????????? | | ??# ##/#####+#####???????????????????? | | ??#! !# #???????????????????? | | ??##!!!!## #???????????????????? | | ???#####?# #???????????????????? | | ?????????# #???????????????????? | | ?????????# ! #???????????????????? | | ?????????##############???????????????????? | | | | | | | | | | | | | | | | | | | | | | | | | | | +----------------------------------------------------+ Best States ------------- Heat Dissipation 28 Energy Generation 14 Energy Capacity 240 Matter Stores 300 Matter Capacity 300 Sight Range 16 Terrain Scan Density 10 Evasion (%) 63 Item Schematics ----------------- None Robot Schematics ------------------ None Fabricated ------------ Nothing Alien Tech Used ----------------- None Achievements -------------- None Challenges ------------ None Game ------ Seed TripodRecyclingDetector Manual? 0 Play Time 00:06:41 Cumulative 23.7 hours Start 2024.04.13 @ 21:50:47 End 2024.04.13 @ 21:56:43 Sessions 1 Manual Loads 0 Difficulty Rogue Special Mode None Game No. 38 Rogue 38 Adventurer 0 Explorer 0 Win Type - Total 0 Types 0/0/0/0/0/0/0/0/0 Lore% 22 Gallery% 21 Achievement% 18 Wizard Run 0 Options --------- Layout 1 ASCII 1 Keyboard 0 Movement Vi Keybinds 0 Fullscreen 1 Font 16/SmallcapsGlow Map View 50x35 Zoom Use 0% Tactical HUD 1 Map Filters NONE Filters NONE Steam SD RUN: 6ff6141b-dffd-48bb-a0eb-22bab2c6e304